bitfinex/quotes_SOLUSD_20250718
["timestamp","ask_amount","ask_price","bid_price","bid_amount"]
[1752870587855,16.78468397,174.38,174.34,11.05092857]
[1752870588239,16.78468397,174.38,174.32,12.71410801]
[1752870588240,16.78468397,174.38,174.35,0.72]
[1752870588575,16.78468397,174.38,174.33,0.06]
[1752870588778,16.78468397,174.38,174.33,0.78]
[1752870589086,17.45468397,174.38,174.34,11.05092857]
[1752870589263,16.78468397,174.38,174.34,11.05092857]
[1752870589463,16.78468397,174.38,174.36,11.05092857]
[1752870589660,5.73427375,174.39,174.34,0.72]
[1752870589661,16.78468397,174.39,174.34,0.72]
[1752870589853,22.51910063,174.39,174.35,0.72]
[1752870590058,33.5700292,174.39,174.34,11.05092857]
[1752870590258,0.67,174.38,174.34,11.05092857]
[1752870590572,16.78468397,174.36,174.35,0.72]
[1752870590777,16.78468397,174.36,174.33,0.06]
[1752870591082,16.78468397,174.36,174.35,11.05092857]
[1752870591253,16.78468397,174.36,174.35,11.77092857]
[1752870591453,16.78468397,174.39,174.35,11.77092857]
[1752870591666,16.78468397,174.39,174.36,11.05092857]
[1752870591977,16.78468397,174.39,174.33,5.79623079]
[1752870591978,5.73460259,174.38,174.34,11.05092857]
[1752870592323,6.40460259,174.38,174.34,11.05092857]
[1752870592580,5.73460259,174.38,174.34,11.77092857]
[1752870592778,17.45553116,174.38,174.33,0.06]
[1752870593084,17.45468397,174.37,174.33,11.11092857]
[1752870593270,0.67,174.36,174.33,0.06]
[1752870593465,16.78468397,174.34,174.33,11.11092857]
[1752870593776,16.78468397,174.34,174.33,0.78]
[1752870593955,16.78468397,174.34,174.33,11.83092857]
[1752870594791,16.78468397,174.34,174.33,0.78]
[1752870594983,16.78468397,174.34,174.33,11.83092857]
[1752870597384,53.8,174.38,174.33,17.56717591]
[1752870597585,53.8,174.38,174.34,0.72]
[1752870597586,16.78468397,174.37,174.34,0.72]
[1752870597786,16.78468397,174.37,174.36,11.05092857]
[1752870597971,16.78468397,174.37,174.36,0.72]
[1752870598164,16.78468397,174.37,174.35,11.05092857]
[1752870598560,16.78468397,174.37,174.36,11.05092857]
[1752870598785,70.56468397,174.4,174.36,11.77092857]
[1752870598989,70.56468397,174.4,174.37,0.72]
[1752870599180,70.56468397,174.4,174.39,11.05092857]
[1752870599475,70.56468397,174.4,174.39,11.77092857]
[1752870599845,70.56468397,174.4,174.39,11.05092857]
[1752870600165,70.56468397,174.4,174.39,11.77092857]
[1752870600477,16.78468397,174.42,174.39,17.50520232]
[1752870600675,16.78468397,174.42,174.41,11.05092857]
[1752870600874,0.03,174.43,174.42,6.5083]
[1752870601080,0.03,174.43,174.42,18.27922857]
[1752870601430,0.03,174.46,174.42,18.27922857]
[1752870601718,4.16971892,174.59,174.5,8.1983]
[1752870601919,0.03,174.59,174.58,11.05092857]
[1752870602079,0.03,174.59,174.58,17.49896156]
[1752870602584,0.03,174.59,174.58,11.77092857]
[1752870602789,0.03,174.59,174.58,11.05092857]
[1752870603007,0.03,174.59,174.55,0.72]
[1752870603182,0.03,174.59,174.58,11.05092857]
[1752870603792,0.03,174.59,174.58,11.77092857]
[1752870604015,0.03,174.61,174.59,5.7277049]
[1752870604326,0.03,174.61,174.6,22.67459482]
[1752870604623,4.58606336,174.71,174.61,1.5159]
[1752870604825,11.05092857,174.71,174.62,1.29267208]
[1752870605117,65.42092857,174.72,174.67,11.05092857]
[1752870605322,11.05092857,174.71,174.66,11.05092857]
[1752870605504,53.7,174.72,174.66,11.05092857]
[1752870605702,0.7,174.69,174.66,11.05092857]
[1752870605903,0.7,174.69,174.68,11.05092857]
[1752870605904,0.03,174.69,174.68,11.05092857]
[1752870606217,0.03,174.69,174.67,11.05092857]
[1752870606924,11.75092857,174.69,174.64,11.05092857]
[1752870607084,11.75092857,174.69,174.65,11.05092857]
[1752870607085,0.7,174.69,174.65,11.05092857]
[1752870607290,0.7,174.69,174.61,2.2359]
[1752870607589,0.7,174.69,174.61,7.96281046]
[1752870607790,0.03,174.69,174.62,0.72]
[1752870608108,0.03,174.69,174.67,11.05092857]
[1752870608290,0.03,174.69,174.68,11.05092857]
[1752870608490,0.03,174.69,174.68,11.77092857]
[1752870609032,0.03,174.69,174.68,11.05092857]
[1752870609485,0.03,174.69,174.68,11.77092857]
[1752870609905,0.03,174.69,174.62,5.72671054]
[1752870610114,11.08092857,174.69,174.62,0.72]
[1752870610290,11.05092857,174.68,174.63,11.05092857]
[1752870610617,11.05092857,174.65,174.59,0.72]
[1752870610922,53.6,174.64,174.6,11.05092857]
[1752870611124,53.6,174.64,174.59,0.72]
[1752870611329,53.6,174.64,174.6,11.05092857]
[1752870611826,11.05092857,174.62,174.55,1.5486]
[1752870612042,5.7277049,174.59,174.55,12.59952857]
[1752870612216,53.56,174.58,174.54,7.3408]
[1752870612404,53.56,174.58,174.55,11.77092857]
[1752870612746,53.56,174.58,174.55,11.05092857]
[1752870612911,53.56,174.58,174.54,17.67172857]
[1752870613099,53.56,174.58,174.57,11.05092857]
[1752870613307,53.56,174.58,174.57,0.72]
[1752870613527,53.56,174.58,174.57,11.77092857]
[1752870613810,5.72577687,174.65,174.57,11.77092857]
[1752870614009,0.03,174.69,174.54,12.35007964]
[1752870614010,0.03,174.69,174.64,11.05092857]
[1752870614228,57.62822735,174.68,174.66,11.05092857]
[1752870614414,4.08822735,174.67,174.62,0.72]
[1752870614627,4.08822735,174.67,174.63,0.72]
[1752870614858,4.08822735,174.67,174.61,1.5473]
[1752870615001,53.54,174.68,174.64,0.72]
[1752870615201,53.54,174.68,174.67,11.05092857]
[1752870615421,53.54,174.68,174.67,11.77092857]
[1752870615830,0.03,174.69,174.67,11.77092857]
[1752870616037,0.03,174.69,174.68,17.4656824]
[1752870616205,0.03,174.69,174.68,18.03815778]
[1752870616405,4.08353988,174.7,174.68,18.03815778]
[1752870616406,4.08353988,174.7,174.68,29.08908635]
[1752870616617,0.03,174.71,174.69,22.79185714]
[1752870616825,4.08385796,174.72,174.7,22.67426698]
[1752870617021,0.03,174.73,174.7,22.67426698]
[1752870617022,0.03,174.73,174.71,11.74092857]
[1752870617235,4.08464969,174.81,174.72,11.62327289]
[1752870617409,4.08464969,174.8,174.75,11.05092857]
[1752870617732,4.08464969,174.79,174.75,11.05092857]
[1752870617907,4.08464969,174.78,174.75,11.74092857]
[1752870618106,53.5,174.82,174.7,11.05092857]
[1752870618107,4.08464969,174.77,174.7,11.05092857]
[1752870618303,4.08464969,174.77,174.68,14.31188458]
[1752870618304,4.08464969,174.75,174.74,11.05092857]
[1752870618533,4.08464969,174.75,174.74,11.74092857]
[1752870618739,57.95408664,174.82,174.74,11.74092857]
[1752870619037,5.72113567,174.8,174.75,17.07140764]
[1752870619233,9.79928246,174.79,174.75,17.07140764]
[1752870619418,4.0780855,174.78,174.75,17.07140764]
[1752870619615,4.0780855,174.77,174.74,17.07140764]
[1752870619916,9.79996223,174.77,174.71,17.07140764]
[1752870620234,53.44,174.79,174.75,17.07140764]
[1752870620436,4.07400891,174.78,174.75,17.07140764]
[1752870620936,17.77140764,174.76,174.68,17.07140764]
[1752870621239,17.07140764,174.74,174.67,0.69]
[1752870621413,53.42,174.73,174.67,0.69]
[1752870621610,53.42,174.73,174.69,17.07140764]
[1752870622311,53.42,174.73,174.7,17.07140764]
[1752870622520,70.49140764,174.73,174.69,0.69]
[1752870622737,70.49140764,174.73,174.65,7.3333]
[1752870622738,17.07140764,174.7,174.65,7.3333]
[1752870622919,0.67,174.7,174.65,6.6433]
[1752870623131,59.14312342,174.73,174.65,6.6433]
[1752870623132,17.07140764,174.68,174.65,6.6433]
[1752870623312,17.07140764,174.67,174.65,6.6433]
[1752870623643,53.4,174.68,174.65,6.6433]
[1752870623938,53.4,174.68,174.65,7.3333]
[1752870624132,53.4,174.68,174.65,24.40470764]
[1752870624326,53.4,174.68,174.66,17.76140764]
[1752870624639,76.19637096,174.68,174.65,6.6433]
[1752870624936,17.07140764,174.67,174.63,0.69]
[1752870625339,17.07140764,174.66,174.61,1.5473]
[1752870625726,17.07140764,174.65,174.61,1.5473]
[1752870625931,0.67,174.65,174.6,6.2687]
[1752870626118,17.07140764,174.63,174.6,6.2687]
[1752870626320,70.43140764,174.63,174.58,17.07140764]
[1752870626536,54.03,174.63,174.58,17.07140764]
[1752870626738,53.36,174.63,174.6,17.07140764]
[1752870627044,53.36,174.63,174.59,0.69]
[1752870627417,53.36,174.63,174.58,17.07140764]
[1752870627618,53.36,174.63,174.59,17.07140764]
[1752870627920,17.07140764,174.61,174.56,17.07140764]
[1752870628131,0.67,174.61,174.56,17.07140764]
[1752870628417,17.74140764,174.61,174.56,17.07140764]
[1752870628620,53.36,174.63,174.59,17.07140764]
[1752870628936,53.36,174.63,174.62,17.07140764]
[1752870629148,53.36,174.63,174.57,0.69]
[1752870629352,53.36,174.63,174.6,17.07140764]
[1752870629889,17.07140764,174.61,174.55,7.9024]
[1752870630036,17.07140764,174.59,174.55,6.3604]
[1752870630243,53.32,174.58,174.56,17.07140764]
[1752870630429,53.32,174.58,174.57,17.76140764]
[1752870630819,53.32,174.58,174.56,17.07140764]
[1752870631327,53.32,174.58,174.55,12.08941403]
[1752870631522,53.32,174.58,174.56,17.07140764]
[1752870631825,53.32,174.58,174.57,17.07140764]
[1752870632440,53.32,174.58,174.57,17.76140764]
[1752870632834,53.32,174.58,174.57,17.07140764]
[1752870633035,53.32,174.58,174.55,6.3604]
[1752870633231,53.32,174.58,174.56,17.07140764]
[1752870633439,53.32,174.58,174.57,17.07140764]
[1752870633640,53.32,174.58,174.56,0.69]
[1752870633964,53.32,174.58,174.57,17.07140764]
[1752870634152,53.32,174.58,174.57,17.76140764]
[1752870634340,53.32,174.58,174.57,23.48976875]
[1752870634544,53.32,174.58,174.57,6.41836111]
[1752870634743,53.28,174.62,174.57,37.81067153]
[1752870635051,53.28,174.62,174.61,17.07140764]
[1752870635238,53.28,174.62,174.61,17.76140764]
[1752870635433,53.28,174.62,174.58,0.69]
[1752870635748,53.28,174.62,174.59,0.69]
[1752870635926,53.28,174.62,174.61,17.07140764]
[1752870636131,57.36785668,174.62,174.6,0.69]
[1752870636336,4.09034706,174.61,174.57,0.69]
[1752870636553,53.28,174.62,174.56,5.72868927]
[1752870636554,70.35140764,174.62,174.56,5.72868927]
[1752870636857,0.67,174.61,174.56,5.72868927]
[1752870637063,0.67,174.61,174.58,17.07140764]
[1752870637419,0.67,174.61,174.57,17.07140764]
[1752870637556,53.28,174.62,174.6,17.07140764]
[1752870637760,53.28,174.62,174.61,17.07140764]
[1752870637983,57.33567498,174.62,174.61,17.07140764]
[1752870638481,57.33567498,174.62,174.59,17.07140764]
[1752870638766,17.07140764,174.6,174.55,0.06]
[1752870638938,11.03806985,174.56,174.55,0.06]
[1752870639142,68.35872228,174.56,174.55,0.06]
[1752870639341,69.02872228,174.56,174.55,0.06]
[1752870640031,69.02872228,174.56,174.49,0.06]
[1752870640237,11.03806985,174.5,174.49,0.06]
[1752870640437,68.35872228,174.5,174.49,0.06]
[1752870640661,69.02872228,174.5,174.49,0.06]
[1752870640858,4.10065243,174.5,174.49,0.06]
[1752870641168,57.32065243,174.5,174.49,17.18817049]
[1752870641366,57.32065243,174.5,174.49,17.87817049]
[1752870641874,0.67,174.59,174.49,17.87817049]
[1752870642047,1.614,174.64,174.49,17.87817049]
[1752870642048,57.31383312,174.58,174.56,17.12817049]
[1752870642244,57.31383312,174.57,174.55,17.12817049]
[1752870642551,57.31383312,174.57,174.51,17.12817049]
[1752870642552,27.64077588,174.56,174.51,17.12817049]
[1752870642873,21.91200361,174.55,174.5,23.73007049]
[1752870643063,17.12817049,174.53,174.49,0.06]
[1752870643253,74.44200361,174.52,174.49,0.06]
[1752870643569,4.11383312,174.51,174.49,0.06]
[1752870643767,4.11383312,174.5,174.49,0.06]
[1752870644906,27.64266263,174.5,174.49,0.06]
[1752870645539,27.64266263,174.5,174.42,6.1689]
[1752870645540,16.78468397,174.49,174.42,6.1689]
[1752870645743,17.12817049,174.46,174.42,6.1689]
[1752870645972,4.1280257,174.45,174.41,17.12817049]
[1752870646180,57.2880257,174.44,174.41,17.12817049]
[1752870646359,4.1280257,174.43,174.38,12.86404858]
[1752870646554,4.1280257,174.42,174.41,17.12817049]
[1752870646875,4.1280257,174.42,174.41,22.86178668]
[1752870647043,53.16,174.44,174.41,22.86178668]
[1752870647238,53.16,174.44,174.43,17.12817049]
[1752870647444,53.16,174.44,174.43,17.84817049]
[1752870648064,57.28587985,174.44,174.43,17.84817049]
[1752870648258,53.16,174.44,174.41,5.73361619]
[1752870648460,53.16,174.44,174.43,17.12817049]
[1752870648664,6.42009956,174.52,174.43,17.84817049]
[1752870648868,57.26381488,174.51,174.49,17.12817049]
[1752870649066,5.72940915,174.54,174.5,17.12817049]
[1752870649271,57.26428739,174.53,174.5,17.12817049]
[1752870649458,4.12428739,174.52,174.51,17.12817049]
[1752870649652,4.12428739,174.52,174.51,17.84817049]
[1752870650056,53.12,174.53,174.51,17.84817049]
[1752870650258,53.12,174.53,174.52,17.84817049]
[1752870650470,53.12,174.53,174.52,17.12817049]
[1752870650668,53.12,174.53,174.49,6.7291]
[1752870650876,4.12439794,174.52,174.51,17.12817049]
[1752870651086,53.12,174.53,174.49,11.74007931]
[1752870651382,4.12438933,174.52,174.5,17.12817049]
[1752870651675,53.81,174.53,174.5,17.12817049]
[1752870651859,4.12390161,174.52,174.5,17.12817049]
[1752870652194,53.81,174.53,174.5,17.12817049]
[1752870652359,4.12405086,174.52,174.49,6.0091]
[1752870652561,0.69,174.52,174.49,17.12817049]
[1752870652777,53.12,174.53,174.5,17.12817049]
[1752870652954,4.12320337,174.52,174.49,17.12817049]
[1752870653157,0.69,174.52,174.48,17.12817049]
[1752870653389,4.81235933,174.52,174.48,17.12817049]
[1752870653579,0.69,174.52,174.48,17.12817049]
[1752870653774,17.81817049,174.51,174.46,17.12817049]
[1752870653959,53.1,174.5,174.46,17.12817049]
[1752870654169,53.79,174.5,174.46,17.12817049]
[1752870654392,53.79,174.5,174.47,17.12817049]
[1752870654599,17.12817049,174.48,174.42,17.12817049]
[1752870654762,70.89817049,174.47,174.45,3.0]
[1752870654962,53.77,174.46,174.45,3.0]
[1752870655266,53.08,174.46,174.45,3.0]
[1752870655762,70.89817049,174.46,174.45,3.0]
[1752870656882,53.08,174.46,174.45,3.0]
[1752870657692,76.63014343,174.46,174.45,3.0]
[1752870660475,75.94014343,174.46,174.45,3.0]
[1752870661393,75.94014343,174.46,174.45,3.72]
[1752870661581,75.94014343,174.46,174.45,10.0403]
[1752870661894,74.50014343,174.46,174.45,10.0403]
[1752870662203,10.0,174.5,174.45,10.0403]
[1752870662373,10.0,174.51,174.49,17.12817049]
[1752870663906,0.03,174.57,174.5,17.12817049]
[1752870664106,0.03,174.57,174.55,27.12817049]
[1752870664107,0.03,174.56,174.55,27.12817049]
[1752870664402,0.03,174.56,174.55,43.91285446]
[1752870664773,0.72,174.56,174.55,26.78468397]
[1752870664977,0.03,174.56,174.55,43.91285446]
[1752870666006,0.03,174.56,174.55,26.78468397]
[1752870666391,0.72,174.56,174.55,10.0]
[1752870666778,0.72,174.56,174.54,10.0]
[1752870666981,52.92,174.55,174.53,10.0]
[1752870667197,52.92,174.55,174.54,10.0]
[1752870667485,57.0497142,174.55,174.54,10.0]
[1752870667685,57.0497142,174.55,174.54,33.91285446]
[1752870667686,4.1297142,174.55,174.54,33.91285446]
[1752870667900,0.03,174.56,174.55,26.78468397]
[1752870668090,0.03,174.56,174.55,43.91285446]
[1752870668408,0.03,174.56,174.55,26.78468397]
[1752870668779,53.62,174.56,174.55,26.78468397]
[1752870669308,70.74817049,174.56,174.54,10.0]
[1752870669606,0.69,174.55,174.54,10.0]
[1752870669987,6.41901747,174.55,174.53,10.0]
[1752870670310,0.69,174.54,174.53,10.0]
[1752870670882,0.69,174.54,174.5,10.0]
[1752870671100,0.69,174.54,174.52,10.0]
[1752870671101,53.55,174.53,174.52,10.0]
[1752870671310,52.86,174.53,174.52,10.0]
[1752870671722,53.55,174.53,174.49,10.0]
[1752870671885,0.69,174.52,174.5,10.0]
[1752870672193,0.69,174.52,174.51,10.0]
[1752870672613,52.84,174.52,174.51,10.0]
[1752870673017,52.84,174.52,174.51,21.03260737]
[1752870673325,64.56260737,174.52,174.49,10.0]
[1752870673526,11.03260737,174.5,174.47,10.0]
[1752870673690,53.53,174.49,174.48,10.0]
[1752870673995,5.73131591,174.48,174.45,13.0]
[1752870674191,11.72260737,174.47,174.45,13.0]
[1752870674416,52.82,174.46,174.45,13.0]
[1752870674584,53.51,174.46,174.45,3.0]
[1752870674785,64.54260737,174.46,174.45,3.0]
[1752870675003,73.26429793,174.46,174.45,3.0]
[1752870675186,69.11889337,174.46,174.45,3.0]
[1752870675494,0.69,174.46,174.45,3.0]
[1752870675902,64.52260737,174.46,174.45,3.0]
[1752870676212,53.49,174.46,174.45,3.0]
[1752870676514,52.8,174.46,174.45,14.03260737]
[1752870676699,52.8,174.46,174.45,24.03260737]
[1752870677286,52.8,174.46,174.45,3.0]
[1752870677493,64.54260737,174.46,174.45,3.0]
[1752870677724,68.68894899,174.46,174.45,2.28]
[1752870677887,68.71894899,174.46,174.45,2.28]
[1752870678095,74.45092193,174.46,174.45,2.28]
[1752870678419,74.45092193,174.46,174.39,10.0]
[1752870678594,11.03260737,174.42,174.41,10.0]
[1752870678910,63.81260737,174.42,174.41,10.0]
[1752870679115,52.78,174.42,174.41,10.0]
[1752870679297,52.78,174.42,174.39,11.03260737]
[1752870679298,52.78,174.42,174.39,26.76678577]
[1752870679620,52.78,174.42,174.41,21.03260737]
[1752870680112,0.03,174.46,174.41,21.03260737]
[1752870680113,0.03,174.46,174.45,10.0]
[1752870680308,52.79,174.46,174.45,10.0]
[1752870681300,53.5,174.46,174.45,10.0]
[1752870681503,68.68836749,174.46,174.41,10.0]
[1752870681696,11.03260737,174.42,174.41,10.0]
[1752870682013,63.77260737,174.42,174.38,16.84468397]
[1752870682213,16.76688112,174.39,174.38,0.06]
[1752870682404,73.64164499,174.39,174.38,0.06]
[1752870682599,74.35164499,174.39,174.37,0.2]
[1752870682892,15.89737124,174.38,174.34,0.06]
[1752870683101,17.16309984,174.35,174.34,0.06]
[1752870683296,69.88309984,174.35,174.34,10.06]
[1752870683692,74.74700627,174.35,174.33,10.06]
[1752870683894,21.31700627,174.34,174.33,10.06]
[1752870684103,32.37580943,174.34,174.33,0.06]
[1752870684290,32.37580943,174.34,174.33,10.06]
[1752870684500,9.47679127,174.34,174.33,10.06]
[1752870684695,22.48598468,174.34,174.33,10.06]
[1752870684901,57.31288484,174.34,174.33,10.06]
[1752870685306,52.7,174.34,174.33,10.06]
[1752870685505,2.90260015,174.34,174.33,17.22309984]
[1752870685707,52.68,174.36,174.35,10.0]
[1752870685918,6.6012,174.44,174.35,10.0]
[1752870685919,52.68,174.37,174.36,10.0]
[1752870686109,17.16309984,174.37,174.35,10.0]
[1752870686423,58.41460259,174.38,174.33,10.06]
[1752870686722,72.75110907,174.38,174.33,10.06]
[1752870687020,4.85614265,174.37,174.33,10.06]
[1752870687225,0.71,174.36,174.33,10.06]
[1752870687411,52.68,174.35,174.33,10.06]
[1752870687603,17.87309984,174.34,174.33,10.06]
[1752870688323,23.60901816,174.34,174.33,0.06]
[1752870688639,17.16309984,174.36,174.33,0.06]
[1752870688926,52.64,174.35,174.34,10.0]
[1752870689094,52.64,174.35,174.33,10.06]
[1752870689297,52.64,174.35,174.34,10.0]
[1752870689596,52.64,174.35,174.33,10.06]
[1752870689799,52.64,174.35,174.34,10.0]
[1752870689997,70.51309984,174.35,174.34,10.0]
[1752870690322,53.35,174.35,174.33,0.06]
[1752870690497,70.51309984,174.35,174.33,10.06]
[1752870690698,53.35,174.35,174.33,0.06]
[1752870691014,17.87309984,174.34,174.33,10.06]
[1752870691217,0.71,174.34,174.33,10.06]
[1752870691527,17.87309984,174.34,174.33,10.06]
[1752870692019,17.87309984,174.34,174.33,0.06]
[1752870692318,23.60901816,174.34,174.33,10.06]
[1752870692704,23.60901816,174.34,174.31,8.54698336]
[1752870692911,53.31,174.33,174.31,8.54698336]
[1752870693219,0.71,174.32,174.31,8.54698336]
[1752870693522,17.87309984,174.32,174.31,8.54698336]
[1752870694205,23.60967625,174.32,174.31,8.54698336]
[1752870694602,27.7402883,174.32,174.31,4.95774023]
[1752870694912,42.08172932,174.32,174.27,80.32659705]
[1752870695114,17.16309984,174.28,174.27,80.32659705]
[1752870695312,70.45309984,174.28,174.27,80.32659705]
[1752870695615,53.29,174.28,174.27,77.45735392]
[1752870695798,71.98959984,174.28,174.27,46.14906299]
[1752870695995,16.78468397,174.27,174.17,1e-08]
[1752870696300,16.78468397,174.27,174.08,37.13075687]
[1752870696301,16.78468397,174.15,174.08,37.13075687]
[1752870696507,16.78468397,174.13,174.08,37.13075687]
[1752870696805,17.16309984,174.09,174.08,37.13075687]
[1752870697006,16.78468397,174.15,174.08,47.13075687]
[1752870697315,4.62464722,174.12,174.11,10.0]
[1752870697524,4.62464722,174.12,174.11,27.84309984]
[1752870697824,21.67143748,174.22,174.17,10.0]
[1752870697825,7.32146453,174.22,174.17,10.0]
[1752870698037,52.56,174.21,174.2,27.16309984]
[1752870698205,7.32146453,174.22,174.2,10.0]
[1752870698400,59.86146453,174.22,174.21,10.0]
[1752870699427,16.78468397,174.21,174.15,10.0]
[1752870699729,0.71,174.2,174.15,10.0]
[1752870699918,69.68309984,174.19,174.15,10.0]
[1752870700232,7.32146453,174.22,174.16,27.16309984]
[1752870700435,7.32146453,174.22,174.19,10.0]
[1752870700602,69.68309984,174.21,174.15,4.07561514]
[1752870700915,69.68309984,174.21,174.12,31.14259805]
[1752870700916,17.16309984,174.19,174.12,31.32259805]
[1752870701115,52.52,174.18,174.14,17.16309984]
[1752870701837,7.32146453,174.22,174.17,17.16309984]
[1752870702010,52.52,174.21,174.19,17.16309984]
[1752870702212,52.52,174.21,174.19,17.84309984]
[1752870702412,52.52,174.21,174.2,5.74052812]
[1752870702716,7.32146453,174.22,174.2,23.58362796]
[1752870702919,52.5,174.24,174.21,17.84309984]
[1752870703143,52.5,174.24,174.23,17.16309984]
[1752870703437,52.5,174.24,174.23,17.84309984]
[1752870703813,52.5,174.24,174.2,5.74052812]
[1752870704018,52.5,174.24,174.22,17.16309984]
[1752870704430,52.5,174.24,174.23,5.73953968]
[1752870704984,52.5,174.24,174.23,22.90263952]
[1752870705152,52.5,174.24,174.23,23.58263952]
[1752870705451,52.46,174.27,174.23,40.36732349]
[1752870705614,6.81620348,174.31,174.26,17.16309984]
[1752870705817,59.27620348,174.31,174.3,17.16309984]
[1752870706238,59.27620348,174.31,174.27,0.67]
[1752870706446,59.27620348,174.31,174.28,5.73789304]
[1752870706936,59.27620348,174.31,174.28,22.90099288]
[1752870707317,59.27620348,174.31,174.29,17.16309984]
[1752870707830,52.42,174.3,174.29,17.16309984]
[1752870708220,6.81620348,174.31,174.29,17.16309984]
[1752870708417,6.81620348,174.31,174.3,23.57033449]
[1752870708930,6.81620348,174.31,174.28,22.52257701]
[1752870709137,6.81620348,174.31,174.28,22.90099288]
[1752870709518,6.81620348,174.31,174.29,17.16309984]
[1752870709739,6.81620348,174.31,174.3,17.16309984]
[1752870709937,6.81620348,174.31,174.3,17.83309984]
[1752870710140,6.81620348,174.31,174.3,34.61778381]
[1752870710550,6.81620348,174.31,174.3,40.35501846]
[1752870710732,6.81620348,174.31,174.3,23.19191862]
[1752870711249,6.81620348,174.31,174.3,40.35501846]
[1752870714734,6.81620348,174.31,174.28,7.27517706]
[1752870714953,6.81620348,174.31,174.29,17.16309984]
[1752870715255,6.81620348,174.31,174.28,7.27517706]
[1752870715454,17.85309984,174.3,174.23,1.5669]
[1752870715755,69.44309984,174.29,174.25,17.16309984]
[1752870715957,52.28,174.29,174.25,17.16309984]
[1752870716131,17.16309984,174.26,174.18,6.8685]
[1752870716330,52.28,174.29,174.18,6.1985]
[1752870716331,17.16309984,174.23,174.18,6.1985]
[1752870716537,69.42309984,174.23,174.18,5.74118727]
[1752870716748,0.69,174.22,174.18,22.90428711]
[1752870716939,17.85309984,174.22,174.18,22.90428711]
[1752870717141,17.85309984,174.21,174.13,14.35660749]
[1752870717335,17.85309984,174.21,174.17,17.16309984]
[1752870717336,0.69,174.21,174.17,17.16309984]
[1752870717559,17.16309984,174.22,174.17,17.16309984]
[1752870717926,0.69,174.21,174.16,17.16309984]
[1752870718255,0.69,174.21,174.14,14.35626507]
[1752870718634,17.85309984,174.21,174.16,17.16309984]
[1752870718853,0.69,174.2,174.16,17.16309984]
[1752870719267,69.42309984,174.23,174.18,17.16309984]
[1752870719475,4.12403233,174.22,174.18,5.74112845]
[1752870719768,4.81397719,174.21,174.14,5.74250602]
[1752870720035,17.16309984,174.22,174.18,17.16309984]
[1752870720150,69.42309984,174.23,174.18,17.16309984]
[1752870720354,4.12525334,174.22,174.19,0.67]
[1752870720681,52.22,174.25,174.21,17.16309984]
[1752870720862,52.2,174.26,174.2,16.78468397]
[1752870721062,4.12783576,174.25,174.22,17.16309984]
[1752870721267,4.12783576,174.24,174.2,16.78468397]
[1752870721450,17.16309984,174.25,174.16,20.09646301]
[1752870721789,4.12912945,174.24,174.17,17.45468397]
[1752870721956,4.12912945,174.23,174.18,0.67]
[1752870722272,0.03,174.24,174.22,17.16309984]
[1752870722460,0.03,174.24,174.23,17.45468397]
[1752870722661,0.03,174.24,174.23,34.61778381]
[1752870722982,6.81620348,174.31,174.23,34.61778381]
[1752870723271,6.81620348,174.31,174.17,0.67]
[1752870723272,17.16309984,174.24,174.17,0.67]
[1752870723479,17.16309984,174.22,174.18,16.78468397]
[1752870723797,17.16309984,174.19,174.12,6.3052]
[1752870724005,17.16309984,174.17,174.12,0.06]
[1752870724169,17.16309984,174.15,174.12,0.06]
[1752870724372,52.85,174.18,174.12,0.06]
[1752870724373,0.69,174.16,174.12,0.06]
[1752870724572,17.85309984,174.16,174.12,5.80302983]
[1752870724767,52.16,174.18,174.12,5.80302983]
[1752870725006,52.16,174.18,174.13,17.16309984]
[1752870725297,52.16,174.18,174.12,6.47302983]
[1752870725499,17.16309984,174.18,174.12,6.47302983]
[1752870725702,0.69,174.24,174.17,17.16309984]